{"text_format":"3","workbook":"xlsx","n_sheets":2,"sheets":["ZAČIATOK","ROČNÝ ČASOVÝ VÝKAZ"],"not_rendered":{"defined_names":2},"read":"whole","date_system":"1900"}

{"sheet":"ZAČIATOK","index":0,"n_rows":8,"n_cols":2,"rows_kept":8}
[null,"INFORMÁCIE O TEJTO ŠABLÓNE"]
[null,"Tento časový výkaz zamestnanca slúži na sledovanie počtu odpracovaných hodín za deň, týždeň, mesiac a rok."]
[null,"Vyplňte základné informácie zahŕňajúce meno zamestnanca, meno nadriadeného, e-mailovú adresu a telefónne číslo. "]
[null,"Pridajte počet odpracovaných hodín do tabuliek jednotlivých mesiacov. Zaznamenajte do samostatných stĺpcov hodiny normálneho pracovného času a hodiny práce nadčas za každý pracovný deň v jednotlivých týždňoch. "]
[null,"Celkový počet odpracovaných hodín a počet hodín normálneho pracovného času a práce nadčas sa vypočítajú automaticky. "]
[null,"Poznámky:"]
[null,"V hárku ROČNÝ ČASOVÝ VÝKAZ sú v stĺpci A uvedené ďalšie pokyny. Tento text je zámerne skrytý. Ak chcete text odstrániť, vyberte stĺpec A a potom stlačte kláves DELETE. Ak chcete text zobraziť, vyberte stĺpec A a potom zmeňte farbu písma. "]
[null,"Ak chcete získať ďalšie informácie o tabuľkách, v tabuľke stlačte kláves SHIFT a potom kláves F10, vyberte možnosť TABUĽKA a potom vyberte položku ALTERNATÍVNY TEXT."]

{"sheet":"ROČNÝ ČASOVÝ VÝKAZ","index":1,"n_rows":132,"n_cols":15,"rows_kept":132,"merged":[[0,1,0,2],[0,4,0,14],[10,6,10,7],[21,6,21,7],[32,6,32,7],[33,4,33,14],[43,6,43,7],[54,6,54,7],[65,6,65,7],[66,4,66,14],[76,6,76,7],[87,6,87,7],[98,6,98,7],[99,4,99,14],[109,6,109,7],[120,6,120,7],[131,6,131,7]]}
["V tomto hárku vytvorte denný, týždenný, mesačný alebo ročný časový výkaz zamestnanca. \nV bunkách v tomto stĺpci sú užitočné pokyny na používanie tohto zošita. Začnite stlačením šípky nadol.\nV bunke napravo je názov tohto hárka a v bunke E1 je nadpis štvrťroka Január, február, marec.","ČASOVÝ VÝKAZ \nZAMESTNANCA",null,null,"Január, február, marec      Časový výkaz zamestnanca: denný, týždenný, mesačný, ročný"]
["Do bunky C2 zadajte meno zamestnanca a do tabuľky začínajúcej v bunke E2 zadajte počet hodín normálneho pracovného času a práce nadčas za január.","Meno zamestnanca:",null,null,"Január","Týždeň 1","Nadčasy","Týždeň 2","Nadčasy  ","Týždeň 3","Nadčasy   ","Týždeň 4","Nadčasy    ","Týždeň 5","Nadčasy     "]
["Do bunky C3 zadajte meno nadriadeného.","Nadriadený:",null,null,"Pondelok",{"v":8,"d":"8.0"}]
["Do bunky C4 zadajte e-mailovú adresu.","E-mail:",null,null,"Utorok",{"v":8,"d":"8.0"},{"v":2,"d":"2.0"}]
["Do bunky C5 zadajte telefónne číslo. Ďalší pokyn je v bunke A9.","Telefón:",null,null,"Streda"]
[{"$nulls":4},"Štvrtok"]
[{"$nulls":4},"Piatok"]
[{"$nulls":4},"Sobota"]
["V bunke C9 sa automaticky vypočíta celkový počet hodín normálneho pracovného času za rok.","Počet hodín normálneho pracovného času:",{"$f":"Hodiny_normalneho_pracovneho_casu","v":31},null,"Nedeľa"]
["V bunke C10 sa automaticky vypočíta celkový počet hodín práce nadčas za rok.","Počet hodín práce nadčas:",{"$f":"Hodiny_nadcasov","v":4},null,"Celkový počet hodín za týždeň",{"$f":"SUM(F3:F9)","v":{"v":16,"d":"16.0"}},{"v":2,"d":"2.0"},{"v":0,"d":"0.0"},{"v":0,"d":"0.0"},{"v":0,"d":"0.0"},{"v":0,"d":"0.0"},{"v":0,"d":"0.0"},{"v":0,"d":"0.0"},{"v":0,"d":"0.0"},{"v":0,"d":"0.0"}]
["V bunke C11 sa automaticky vypočíta celkový súčet odpracovaných hodín za rok. Celkový počet hodín normálneho pracovného času za január v bunke F11 a celkový počet hodín práce nadčas za január v bunke I11 sa vypočítajú automaticky. Ďalší pokyn je v bunke A13.","Spolu",{"$f":"Hodiny_normalneho_pracovneho_casu+Hodiny_nadcasov","v":35},null,{"$f":"TEXT(DATEVALUE(Januar[[#Headers],[Január]]&\"  \"&YEAR(TODAY())),\"mmmm\")&\" spolu: normálny pracovný čas\"","v":"január spolu: normálny pracovný čas"},{"$f":"SUM(Januar[Týždeň 1],Januar[Týždeň 2],Januar[Týždeň 3],Januar[Týždeň 4],Januar[Týždeň 5])","v":{"v":16,"d":"16.0"}},{"$f":"TEXT(DATEVALUE(Januar[[#Headers],[Január]]&\"  \"&YEAR(TODAY())),\"mmmm\")&\" spolu: nadčasy\"","v":"január spolu: nadčasy"},null,{"$f":"SUM(Januar[Nadčasy],Januar[[Nadčasy  ]],Januar[[Nadčasy   ]],Januar[[Nadčasy    ]],Januar[[Nadčasy     ]])","v":{"v":2,"d":"2.0"}}]
[]
["Do tabuľky začínajúcej v bunke E13 zadajte počet hodín normálneho pracovného času a práce nadčas za február. Ďalší pokyn je v bunke A22.",{"$nulls":3},"Február","Týždeň 1","Nadčasy","Týždeň 2","Nadčasy  ","Týždeň 3","Nadčasy   ","Týždeň 4","Nadčasy    ","Týždeň 5","Nadčasy     "]
[{"$nulls":4},"Pondelok",{"v":8,"d":"8.0"}]
[{"$nulls":4},"Utorok",{"v":7,"d":"7.0"},{"v":2,"d":"2.0"}]
[{"$nulls":4},"Streda"]
[{"$nulls":4},"Štvrtok"]
[{"$nulls":4},"Piatok"]
[{"$nulls":4},"Sobota"]
[{"$nulls":4},"Nedeľa"]
[{"$nulls":4},"Celkový počet hodín za týždeň",{"$f":"SUM(F14:F20)","v":{"v":15,"d":"15.0"}},{"v":2,"d":"2.0"},{"v":0,"d":"0.0"},{"v":0,"d":"0.0"},{"v":0,"d":"0.0"},{"v":0,"d":"0.0"},{"v":0,"d":"0.0"},{"v":0,"d":"0.0"},{"v":0,"d":"0.0"},{"v":0,"d":"0.0"}]
["Celkový počet hodín normálneho pracovného času za február v bunke F22 a celkový počet hodín práce nadčas za február v bunke I22 sa vypočítajú automaticky. Ďalší pokyn je v bunke A24.",{"$nulls":3},{"$f":"TEXT(DATEVALUE(Februar[[#Headers],[Február]]&\"  \"&YEAR(TODAY())),\"mmmm\")&\" spolu: normálny pracovný čas\"","v":"február spolu: normálny pracovný čas"},{"$f":"SUM(Februar[Týždeň 1],Februar[Týždeň 2],Februar[Týždeň 3],Februar[Týždeň 4],Februar[Týždeň 5])","v":{"v":15,"d":"15.0"}},{"$f":"TEXT(DATEVALUE(Februar[[#Headers],[Február]]&\" \"&YEAR(TODAY())),\"mmmm\")&\" spolu: nadčasy\"","v":"február spolu: nadčasy"},null,{"$f":"SUM(Februar[Nadčasy],Februar[[Nadčasy  ]],Februar[[Nadčasy   ]],Februar[[Nadčasy    ]],Februar[[Nadčasy     ]])","v":{"v":2,"d":"2.0"}}]
[]
["Do tabuľky začínajúcej v bunke E24 zadajte počet hodín normálneho pracovného času a práce nadčas za marec. Ďalší pokyn je v bunke A33.",{"$nulls":3},"Marec","Týždeň 1","Nadčasy","Týždeň 2","Nadčasy ","Týždeň 3","Nadčasy  ","Týždeň 4","Nadčasy    ","Týždeň 5","Nadčasy     "]
[{"$nulls":4},"Pondelok"]
[{"$nulls":4},"Utorok"]
[{"$nulls":4},"Streda"]
[{"$nulls":4},"Štvrtok"]
[{"$nulls":4},"Piatok"]
[{"$nulls":4},"Sobota"]
[{"$nulls":4},"Nedeľa"]
[{"$nulls":4},"Celkový počet hodín za týždeň",{"$f":"SUM(F25:F31)","v":{"v":0,"d":"0.0"}},{"v":0,"d":"0.0"},{"v":0,"d":"0.0"},{"v":0,"d":"0.0"},{"v":0,"d":"0.0"},{"v":0,"d":"0.0"},{"v":0,"d":"0.0"},{"v":0,"d":"0.0"},{"v":0,"d":"0.0"},{"v":0,"d":"0.0"}]
["Celkový počet hodín normálneho pracovného času za marec v bunke F33 a celkový počet hodín práce nadčas za marec v bunke I33 sa vypočítajú automaticky.",{"$nulls":3},{"$f":"TEXT(DATEVALUE(Marec[[#Headers],[Marec]]&\" \"&YEAR(TODAY())),\"mmmm\")&\" spolu: normálny pracovný čas\"","v":"marec spolu: normálny pracovný čas"},{"$f":"SUM(Marec[Týždeň 1],Marec[Týždeň 2],Marec[Týždeň 3],Marec[Týždeň 4],Marec[Týždeň 5])","v":{"v":0,"d":"0.0"}},{"$f":"TEXT(DATEVALUE(Marec[[#Headers],[Marec]]&\" \"&YEAR(TODAY())),\"mmmm\")&\" spolu: nadčasy\"","v":"marec spolu: nadčasy"},null,{"$f":"SUM(Marec[Nadčasy],Marec[[Nadčasy ]],Marec[[Nadčasy  ]],Marec[[Nadčasy    ]],Marec[[Nadčasy     ]])","v":{"v":0,"d":"0.0"}}]
["V bunke E34 je nadpis druhého štvrťroka Apríl, máj, jún. ",{"$nulls":3},"Apríl, máj, jún      Časový výkaz zamestnanca: denný, týždenný, mesačný, ročný"]
["Do tabuľky začínajúcej v bunke E35 zadajte počet hodín normálneho pracovného času a práce nadčas za apríl. Ďalší pokyn je v bunke A44.",{"$nulls":3},"Apríl","Týždeň 1","Nadčasy","Týždeň 2","Nadčasy  ","Týždeň 3","Nadčasy   ","Týždeň 4","Nadčasy    ","Týždeň 5","Nadčasy     "]
[{"$nulls":4},"Pondelok"]
[{"$nulls":4},"Utorok"]
[{"$nulls":4},"Streda"]
[{"$nulls":4},"Štvrtok"]
[{"$nulls":4},"Piatok"]
[{"$nulls":4},"Sobota"]
[{"$nulls":4},"Nedeľa"]
[{"$nulls":4},"Celkový počet hodín za týždeň",{"$f":"SUM(F36:F42)","v":{"v":0,"d":"0.0"}},{"v":0,"d":"0.0"},{"v":0,"d":"0.0"},{"v":0,"d":"0.0"},{"v":0,"d":"0.0"},{"v":0,"d":"0.0"},{"v":0,"d":"0.0"},{"v":0,"d":"0.0"},{"v":0,"d":"0.0"},{"v":0,"d":"0.0"}]
["Celkový počet hodín normálneho pracovného času za apríl v bunke F44 a celkový počet hodín práce nadčas za apríl v bunke I44 sa vypočítajú automaticky. Ďalší pokyn je v bunke A46.",{"$nulls":3},{"$f":"TEXT(DATEVALUE(April[[#Headers],[Apríl]]&\" \"&YEAR(TODAY())),\"mmmm\")&\" spolu: normálny pracovný čas\"","v":"apríl spolu: normálny pracovný čas"},{"$f":"SUM(April[Týždeň 1],April[Týždeň 2],April[Týždeň 3],April[Týždeň 4],April[Týždeň 5])","v":{"v":0,"d":"0.0"}},{"$f":"TEXT(DATEVALUE(April[[#Headers],[Apríl]]&\" \"&YEAR(TODAY())),\"mmmm\")&\" spolu: nadčasy\"","v":"apríl spolu: nadčasy"},null,{"$f":"SUM(April[Nadčasy],April[[Nadčasy  ]],April[[Nadčasy   ]],April[[Nadčasy    ]],April[[Nadčasy     ]])","v":{"v":0,"d":"0.0"}}]
[]
["Do tabuľky začínajúcej v bunke E46 zadajte počet hodín normálneho pracovného času a práce nadčas za máj. Ďalší pokyn je v bunke A55.",{"$nulls":3},"Máj","Týždeň 1","Nadčasy","Týždeň 2","Nadčasy  ","Týždeň 3","Nadčasy   ","Týždeň 4","Nadčasy    ","Týždeň 5","Nadčasy     "]
[{"$nulls":4},"Pondelok"]
[{"$nulls":4},"Utorok"]
[{"$nulls":4},"Streda"]
[{"$nulls":4},"Štvrtok"]
[{"$nulls":4},"Piatok"]
[{"$nulls":4},"Sobota"]
[{"$nulls":4},"Nedeľa"]
[{"$nulls":4},"Celkový počet hodín za týždeň",{"$f":"SUM(F47:F53)","v":{"v":0,"d":"0.0"}},{"v":0,"d":"0.0"},{"v":0,"d":"0.0"},{"v":0,"d":"0.0"},{"v":0,"d":"0.0"},{"v":0,"d":"0.0"},{"v":0,"d":"0.0"},{"v":0,"d":"0.0"},{"v":0,"d":"0.0"},{"v":0,"d":"0.0"}]
["Celkový počet hodín normálneho pracovného času za máj v bunke F55 a celkový počet hodín práce nadčas za máj v bunke I55 sa vypočítajú automaticky. Ďalší pokyn je v bunke A57.",{"$nulls":3},{"$f":"TEXT(DATEVALUE(Maj[[#Headers],[Máj]]&\" \"&YEAR(TODAY())),\"mmmm\")&\" spolu: normálny pracovný čas\"","v":"máj spolu: normálny pracovný čas"},{"$f":"SUM(Maj[Týždeň 1],Maj[Týždeň 2],Maj[Týždeň 3],Maj[Týždeň 4],Maj[Týždeň 5])","v":{"v":0,"d":"0.0"}},{"$f":"TEXT(DATEVALUE(Maj[[#Headers],[Máj]]&\" \"&YEAR(TODAY())),\"mmmm\")&\" spolu: nadčasy\"","v":"máj spolu: nadčasy"},null,{"$f":"SUM(Maj[Nadčasy],Maj[[Nadčasy  ]],Maj[[Nadčasy   ]],Maj[[Nadčasy    ]],Maj[[Nadčasy     ]])","v":{"v":0,"d":"0.0"}}]
[]
["Do tabuľky začínajúcej v bunke E57 zadajte počet hodín normálneho pracovného času a práce nadčas za jún. Ďalší pokyn je v bunke A66.",{"$nulls":3},"Jún","Týždeň 1","Nadčasy","Týždeň 2","Nadčasy  ","Týždeň 3","Nadčasy   ","Týždeň 4","Nadčasy    ","Týždeň 5","Nadčasy     "]
[{"$nulls":4},"Pondelok"]
[{"$nulls":4},"Utorok"]
[{"$nulls":4},"Streda"]
[{"$nulls":4},"Štvrtok"]
[{"$nulls":4},"Piatok"]
[{"$nulls":4},"Sobota"]
[{"$nulls":4},"Nedeľa"]
[{"$nulls":4},"Celkový počet hodín za týždeň",{"$f":"SUM(F58:F64)","v":{"v":0,"d":"0.0"}},{"v":0,"d":"0.0"},{"v":0,"d":"0.0"},{"v":0,"d":"0.0"},{"v":0,"d":"0.0"},{"v":0,"d":"0.0"},{"v":0,"d":"0.0"},{"v":0,"d":"0.0"},{"v":0,"d":"0.0"},{"v":0,"d":"0.0"}]
["Celkový počet hodín normálneho pracovného času za jún v bunke F66 a celkový počet hodín práce nadčas za jún v bunke I66 sa vypočítajú automaticky.",{"$nulls":3},{"$f":"TEXT(DATEVALUE(Jun[[#Headers],[Jún]]&\" \"&YEAR(TODAY())),\"mmmm\")&\" spolu: normálny pracovný čas\"","v":"jún spolu: normálny pracovný čas"},{"$f":"SUM(Jun[Týždeň 1],Jun[Týždeň 2],Jun[Týždeň 3],Jun[Týždeň 4],Jun[Týždeň 5])","v":{"v":0,"d":"0.0"}},{"$f":"TEXT(DATEVALUE(Jun[[#Headers],[Jún]]&\" \"&YEAR(TODAY())),\"mmmm\")&\" spolu: nadčasy\"","v":"jún spolu: nadčasy"},null,{"$f":"SUM(Jun[Nadčasy],Jun[[Nadčasy  ]],Jun[[Nadčasy   ]],Jun[[Nadčasy    ]],Jun[[Nadčasy     ]])","v":{"v":0,"d":"0.0"}}]
["V bunke E67 je nadpis tretieho štvrťroka Júl, august, september. ",{"$nulls":3},"Júl, august, september      Časový výkaz zamestnanca: denný, týždenný, mesačný, ročný"]
["Do tabuľky začínajúcej v bunke E68 zadajte počet hodín normálneho pracovného času a práce nadčas za júl. Ďalší pokyn je v bunke A77.",{"$nulls":3},"Júl","Týždeň 1","Nadčasy","Týždeň 2","Nadčasy ","Týždeň 3","Nadčasy  ","Týždeň 4","Nadčasy   ","Týždeň 5","Nadčasy     "]
[{"$nulls":4},"Pondelok"]
[{"$nulls":4},"Utorok"]
[{"$nulls":4},"Streda"]
[{"$nulls":4},"Štvrtok"]
[{"$nulls":4},"Piatok"]
[{"$nulls":4},"Sobota"]
[{"$nulls":4},"Nedeľa"]
[{"$nulls":4},"Celkový počet hodín za týždeň",{"$f":"SUM(F69:F75)","v":{"v":0,"d":"0.0"}},{"v":0,"d":"0.0"},{"v":0,"d":"0.0"},{"v":0,"d":"0.0"},{"v":0,"d":"0.0"},{"v":0,"d":"0.0"},{"v":0,"d":"0.0"},{"v":0,"d":"0.0"},{"v":0,"d":"0.0"},{"v":0,"d":"0.0"}]
["Celkový počet hodín normálneho pracovného času za júl v bunke F77 a celkový počet hodín práce nadčas za júl v bunke I77 sa vypočítajú automaticky. Ďalší pokyn je v bunke A79.",{"$nulls":3},{"$f":"TEXT(DATEVALUE(Jul[[#Headers],[Júl]]&\" \"&YEAR(TODAY())),\"mmmm\")&\" spolu: normálny pracovný čas\"","v":"júl spolu: normálny pracovný čas"},{"$f":"SUM(Jul[Týždeň 1],Jul[Týždeň 2],Jul[Týždeň 3],Jul[Týždeň 4],Jul[Týždeň 5])","v":{"v":0,"d":"0.0"}},{"$f":"TEXT(DATEVALUE(Jul[[#Headers],[Júl]]&\" \"&YEAR(TODAY())),\"mmmm\")&\" spolu: nadčasy\"","v":"júl spolu: nadčasy"},null,{"$f":"SUM(Jul[Nadčasy],Jul[[Nadčasy ]],Jul[[Nadčasy  ]],Jul[[Nadčasy   ]],Jul[[Nadčasy     ]])","v":{"v":0,"d":"0.0"}}]
[]
["Do tabuľky začínajúcej v bunke E79 zadajte počet hodín normálneho pracovného času a práce nadčas za august. Ďalší pokyn je v bunke A88.",{"$nulls":3},"August","Týždeň 1","Nadčasy","Týždeň 2","Nadčasy ","Týždeň 3","Nadčasy   ","Týždeň 4","Nadčasy  ","Týždeň 5","Nadčasy    "]
[{"$nulls":4},"Pondelok"]
[{"$nulls":4},"Utorok"]
[{"$nulls":4},"Streda"]
[{"$nulls":4},"Štvrtok"]
[{"$nulls":4},"Piatok"]
[{"$nulls":4},"Sobota"]
[{"$nulls":4},"Nedeľa"]
[{"$nulls":4},"Celkový počet hodín za týždeň",{"$f":"SUBTOTAL(109,August[Týždeň 1])","v":{"v":0,"d":"0.0"}},{"$f":"SUBTOTAL(109,August[Nadčasy])","v":{"v":0,"d":"0.0"}},{"$f":"SUBTOTAL(109,August[Týždeň 2])","v":{"v":0,"d":"0.0"}},{"$f":"SUBTOTAL(109,August[[Nadčasy ]])","v":{"v":0,"d":"0.0"}},{"$f":"SUBTOTAL(109,August[Týždeň 3])","v":{"v":0,"d":"0.0"}},{"$f":"SUBTOTAL(109,August[[Nadčasy   ]])","v":{"v":0,"d":"0.0"}},{"$f":"SUBTOTAL(109,August[Týždeň 4])","v":{"v":0,"d":"0.0"}},{"$f":"SUBTOTAL(109,August[[Nadčasy  ]])","v":{"v":0,"d":"0.0"}},{"$f":"SUBTOTAL(109,August[Týždeň 5])","v":{"v":0,"d":"0.0"}},{"$f":"SUBTOTAL(109,August[[Nadčasy    ]])","v":{"v":0,"d":"0.0"}}]
["Celkový počet hodín normálneho pracovného času za august v bunke F88 a celkový počet hodín práce nadčas za august v bunke I88 sa vypočítajú automaticky. Ďalší pokyn je v bunke A90.",{"$nulls":3},{"$f":"TEXT(DATEVALUE(August[[#Headers],[August]]&\" \"&YEAR(TODAY())),\"mmmm\")&\" spolu: normálny pracovný čas\"","v":"august spolu: normálny pracovný čas"},{"$f":"SUM(August[Týždeň 1],August[Týždeň 2],August[Týždeň 3],August[Týždeň 4],August[Týždeň 5])","v":{"v":0,"d":"0.0"}},{"$f":"TEXT(DATEVALUE(August[[#Headers],[August]]&\" \"&YEAR(TODAY())),\"mmmm\")&\" spolu: nadčasy\"","v":"august spolu: nadčasy"},null,{"$f":"SUM(August[Nadčasy],August[[Nadčasy ]],August[[Nadčasy   ]],August[[Nadčasy  ]],August[[Nadčasy    ]])","v":{"v":0,"d":"0.0"}}]
[]
["Do tabuľky začínajúcej v bunke E90 zadajte počet hodín normálneho pracovného času a práce nadčas za september. Ďalší pokyn je v bunke A99.",{"$nulls":3},"September","Týždeň 1","Nadčasy","Týždeň 2","Nadčasy ","Týždeň 3","Nadčasy  ","Týždeň 4","Nadčasy   ","Týždeň 5","Nadčasy    "]
[{"$nulls":4},"Pondelok"]
[{"$nulls":4},"Utorok"]
[{"$nulls":4},"Streda"]
[{"$nulls":4},"Štvrtok"]
[{"$nulls":4},"Piatok"]
[{"$nulls":4},"Sobota"]
[{"$nulls":4},"Nedeľa"]
[{"$nulls":4},"Celkový počet hodín za týždeň",{"$f":"SUBTOTAL(109,September[Týždeň 1])","v":{"v":0,"d":"0.0"}},{"$f":"SUBTOTAL(109,September[Nadčasy])","v":{"v":0,"d":"0.0"}},{"$f":"SUBTOTAL(109,September[Týždeň 2])","v":{"v":0,"d":"0.0"}},{"$f":"SUBTOTAL(109,September[[Nadčasy ]])","v":{"v":0,"d":"0.0"}},{"$f":"SUBTOTAL(109,September[Týždeň 3])","v":{"v":0,"d":"0.0"}},{"$f":"SUBTOTAL(109,September[[Nadčasy  ]])","v":{"v":0,"d":"0.0"}},{"$f":"SUBTOTAL(109,September[Týždeň 4])","v":{"v":0,"d":"0.0"}},{"$f":"SUBTOTAL(109,September[[Nadčasy   ]])","v":{"v":0,"d":"0.0"}},{"$f":"SUBTOTAL(109,September[Týždeň 5])","v":{"v":0,"d":"0.0"}},{"$f":"SUBTOTAL(109,September[[Nadčasy    ]])","v":{"v":0,"d":"0.0"}}]
["Celkový počet hodín normálneho pracovného času za september v bunke F99 a celkový počet hodín práce nadčas za september v bunke I99 sa vypočítajú automaticky.",{"$nulls":3},{"$f":"TEXT(DATEVALUE(September[[#Headers],[September]]&\" \"&YEAR(TODAY())),\"mmmm\")&\" spolu: normálny pracovný čas\"","v":"september spolu: normálny pracovný čas"},{"$f":"SUM(September[Týždeň 1],September[Týždeň 2],September[Týždeň 3],September[Týždeň 4],September[Týždeň 5])","v":{"v":0,"d":"0.0"}},{"$f":"TEXT(DATEVALUE(September[[#Headers],[September]]&\" \"&YEAR(TODAY())),\"mmmm\")&\" spolu: nadčasy\"","v":"september spolu: nadčasy"},null,{"$f":"SUM(September[Nadčasy],September[[Nadčasy ]],September[[Nadčasy  ]],September[[Nadčasy   ]],September[[Nadčasy    ]])","v":{"v":0,"d":"0.0"}}]
["V bunke E100 je nadpis štvrtého štvrťroka Október, november, december. ",{"$nulls":3},"Október, november, december      Časový výkaz zamestnanca: denný, týždenný, mesačný, ročný"]
["Do tabuľky začínajúcej v bunke E101 zadajte počet hodín normálneho pracovného času a práce nadčas za október. Ďalší pokyn je v bunke A110.",{"$nulls":3},"Október","Týždeň 1","Nadčasy","Týždeň 2","Nadčasy ","Týždeň 3","Nadčasy  ","Týždeň 4","Nadčasy   ","Týždeň 5","Nadčasy    "]
[{"$nulls":4},"Pondelok"]
[{"$nulls":4},"Utorok"]
[{"$nulls":4},"Streda"]
[{"$nulls":4},"Štvrtok"]
[{"$nulls":4},"Piatok"]
[{"$nulls":4},"Sobota"]
[{"$nulls":4},"Nedeľa"]
[{"$nulls":4},"Celkový počet hodín za týždeň",{"$f":"SUBTOTAL(109,Oktober[Týždeň 1])","v":{"v":0,"d":"0.0"}},{"$f":"SUBTOTAL(109,Oktober[Nadčasy])","v":{"v":0,"d":"0.0"}},{"$f":"SUBTOTAL(109,Oktober[Týždeň 2])","v":{"v":0,"d":"0.0"}},{"$f":"SUBTOTAL(109,Oktober[[Nadčasy ]])","v":{"v":0,"d":"0.0"}},{"$f":"SUBTOTAL(109,Oktober[Týždeň 3])","v":{"v":0,"d":"0.0"}},{"$f":"SUBTOTAL(109,Oktober[[Nadčasy  ]])","v":{"v":0,"d":"0.0"}},{"$f":"SUBTOTAL(109,Oktober[Týždeň 4])","v":{"v":0,"d":"0.0"}},{"$f":"SUBTOTAL(109,Oktober[[Nadčasy   ]])","v":{"v":0,"d":"0.0"}},{"$f":"SUBTOTAL(109,Oktober[Týždeň 5])","v":{"v":0,"d":"0.0"}},{"$f":"SUBTOTAL(109,Oktober[[Nadčasy    ]])","v":{"v":0,"d":"0.0"}}]
["Celkový počet hodín normálneho pracovného času za október v bunke F110 a celkový počet hodín práce nadčas za október v bunke I110 sa vypočítajú automaticky. Ďalší pokyn je v bunke A112.",{"$nulls":3},{"$f":"TEXT(DATEVALUE(Oktober[[#Headers],[Október]]&\" \"&YEAR(TODAY())),\"mmmm\")&\" spolu: normálny pracovný čas\"","v":"október spolu: normálny pracovný čas"},{"$f":"SUM(Oktober[Týždeň 1],Oktober[Týždeň 2],Oktober[Týždeň 3],Oktober[Týždeň 4],Oktober[Týždeň 5])","v":{"v":0,"d":"0.0"}},{"$f":"TEXT(DATEVALUE(Oktober[[#Headers],[Október]]&\" \"&YEAR(TODAY())),\"mmmm\")&\" spolu: nadčasy\"","v":"október spolu: nadčasy"},null,{"$f":"SUM(Oktober[Nadčasy],Oktober[[Nadčasy ]],Oktober[[Nadčasy  ]],Oktober[[Nadčasy   ]],Oktober[[Nadčasy    ]])","v":{"v":0,"d":"0.0"}}]
[]
["Do tabuľky začínajúcej v bunke E112 zadajte počet hodín normálneho pracovného času a práce nadčas za november. Ďalší pokyn je v bunke A121.",{"$nulls":3},"November","Týždeň 1","Nadčasy","Týždeň 2","Nadčasy ","Týždeň 3","Nadčasy  ","Týždeň 4","Nadčasy    ","Týždeň 5","Nadčasy     "]
[{"$nulls":4},"Pondelok"]
[{"$nulls":4},"Utorok"]
[{"$nulls":4},"Streda"]
[{"$nulls":4},"Štvrtok"]
[{"$nulls":4},"Piatok"]
[{"$nulls":4},"Sobota"]
[{"$nulls":4},"Nedeľa"]
[{"$nulls":4},"Celkový počet hodín za týždeň",{"$f":"SUBTOTAL(109,November[Týždeň 1])","v":{"v":0,"d":"0.0"}},{"$f":"SUBTOTAL(109,November[Nadčasy])","v":{"v":0,"d":"0.0"}},{"$f":"SUBTOTAL(109,November[Týždeň 2])","v":{"v":0,"d":"0.0"}},{"$f":"SUBTOTAL(109,November[[Nadčasy ]])","v":{"v":0,"d":"0.0"}},{"$f":"SUBTOTAL(109,November[Týždeň 3])","v":{"v":0,"d":"0.0"}},{"$f":"SUBTOTAL(109,November[[Nadčasy  ]])","v":{"v":0,"d":"0.0"}},{"$f":"SUBTOTAL(109,November[Týždeň 4])","v":{"v":0,"d":"0.0"}},{"$f":"SUBTOTAL(109,November[[Nadčasy    ]])","v":{"v":0,"d":"0.0"}},{"$f":"SUBTOTAL(109,November[Týždeň 5])","v":{"v":0,"d":"0.0"}},{"$f":"SUBTOTAL(109,November[[Nadčasy     ]])","v":{"v":0,"d":"0.0"}}]
["Celkový počet hodín normálneho pracovného času za november v bunke F121 a celkový počet hodín práce nadčas za november v bunke I121 sa vypočítajú automaticky. Ďalší pokyn je v bunke A123.",{"$nulls":3},{"$f":"TEXT(DATEVALUE(November[[#Headers],[November]]&\" \"&YEAR(TODAY())),\"mmmm\")&\" spolu: normálny pracovný čas\"","v":"november spolu: normálny pracovný čas"},{"$f":"SUM(November[Týždeň 1],November[Týždeň 2],November[Týždeň 3],November[Týždeň 4],November[Týždeň 5])","v":{"v":0,"d":"0.0"}},{"$f":"TEXT(DATEVALUE(November[[#Headers],[November]]&\" \"&YEAR(TODAY())),\"mmmm\")&\" spolu: nadčasy\"","v":"november spolu: nadčasy"},null,{"$f":"SUM(November[Nadčasy],November[[Nadčasy ]],November[[Nadčasy  ]],November[[Nadčasy    ]],November[[Nadčasy     ]])","v":{"v":0,"d":"0.0"}}]
[]
["Do tabuľky začínajúcej v bunke E123 zadajte počet hodín normálneho pracovného času a práce nadčas za december. Ďalší pokyn je v bunke A132.",{"$nulls":3},"December","Týždeň 1","Nadčasy","Týždeň 2","Nadčasy ","Týždeň 3","Nadčasy  ","Týždeň 4","Nadčasy   ","Týždeň 5","Nadčasy    "]
[{"$nulls":4},"Pondelok"]
[{"$nulls":4},"Utorok"]
[{"$nulls":4},"Streda"]
[{"$nulls":4},"Štvrtok"]
[{"$nulls":4},"Piatok"]
[{"$nulls":4},"Sobota"]
[{"$nulls":4},"Nedeľa"]
[{"$nulls":4},"Celkový počet hodín za týždeň",{"$f":"SUBTOTAL(109,December[Týždeň 1])","v":{"v":0,"d":"0.0"}},{"$f":"SUBTOTAL(109,December[Nadčasy])","v":{"v":0,"d":"0.0"}},{"$f":"SUBTOTAL(109,December[Týždeň 2])","v":{"v":0,"d":"0.0"}},{"$f":"SUBTOTAL(109,December[[Nadčasy ]])","v":{"v":0,"d":"0.0"}},{"$f":"SUBTOTAL(109,December[Týždeň 3])","v":{"v":0,"d":"0.0"}},{"$f":"SUBTOTAL(109,December[[Nadčasy  ]])","v":{"v":0,"d":"0.0"}},{"$f":"SUBTOTAL(109,December[Týždeň 4])","v":{"v":0,"d":"0.0"}},{"$f":"SUBTOTAL(109,December[[Nadčasy   ]])","v":{"v":0,"d":"0.0"}},{"$f":"SUBTOTAL(109,December[Týždeň 5])","v":{"v":0,"d":"0.0"}},{"$f":"SUBTOTAL(109,December[[Nadčasy    ]])","v":{"v":0,"d":"0.0"}}]
["Celkový počet hodín normálneho pracovného času za december v bunke F132 a celkový počet hodín práce nadčas za december v bunke I132 sa vypočítajú automaticky.",{"$nulls":3},{"$f":"TEXT(DATEVALUE(December[[#Headers],[December]]&\" \"&YEAR(TODAY())),\"mmmm\")&\" spolu: normálny pracovný čas\"","v":"december spolu: normálny pracovný čas"},{"$f":"SUM(December[Týždeň 1],December[Týždeň 2],December[Týždeň 3],December[Týždeň 4],December[Týždeň 5])","v":{"v":0,"d":"0.0"}},{"$f":"TEXT(DATEVALUE(December[[#Headers],[December]]&\" \"&YEAR(TODAY())),\"mmmm\")&\" spolu: nadčasy\"","v":"december spolu: nadčasy"},null,{"$f":"SUM(G124:G130,I124:I130,K124:K130,M124:M130,O124:O130)","v":{"v":0,"d":"0.0"}}]